fUSD/lending_fUSD_20260506
["ID","MTS","AMOUNT","RATE_DAILY","PERIOD"]
[421650815,1778024954000,-2000.0,0.00012171,2]
[421650806,1778024954000,-250.0,0.00011163,2]
[421650805,1778024954000,-218.58,0.00011121,2]
[421650804,1778024954000,-250.0,0.00011,2]
[421650803,1778024954000,-292.0,0.00011,2]
[421650811,1778024954000,-500.0,0.000121,2]
[421650817,1778024954000,-170.89,0.00012413,2]
[421650826,1778024954000,-921.1,0.00012623,2]
[421650819,1778024954000,-300.0,0.00012447,2]
[421650831,1778024954000,-151.0,0.00012757,2]
[421650832,1778024954000,-4213.59956377,0.00012757,2]
[421650827,1778024954000,-1431.2,0.00012682,2]
[421650829,1778024954000,-150.0,0.00012756,2]
[421650814,1778024954000,-2694.81,0.0001217,2]
[421650828,1778024954000,-3740.19,0.00012749,2]
[421650825,1778024954000,-14209.57,0.00012464,2]
[421650830,1778024954000,-352.65995883,0.00012757,2]
[421650824,1778024954000,-500.0,0.00012464,2]
[421650822,1778024954000,-200.0,0.0001245,2]
[421650823,1778024954000,-150.0,0.0001245,2]
[421650821,1778024954000,-500.0,0.00012448,2]
[421650820,1778024954000,-300.0,0.00012447,2]
[421650818,1778024954000,-300.0,0.00012446,2]
[421650833,1778024969000,-10306.13043623,0.00012757,2]
[421650835,1778024969000,-151.0,0.00012757,2]
[421650836,1778024969000,-282.12796706,0.00012757,2]
[421650838,1778024969000,-999.99,0.00012757,2]
[421650837,1778024969000,-282.12796706,0.00012757,2]
[421650840,1778024969000,-9999.99,0.00012757,2]
[421650834,1778024969000,-151.0,0.00012757,2]
[421650843,1778024969000,-9999.99,0.00012843,2]
[421650842,1778024969000,-1172.82,0.00012795,2]
[421650841,1778024969000,-1600.0,0.00012778,2]
[421650844,1778024969000,-299.99,0.00012843,2]
[421650846,1778024969000,-9045.24210965,0.00012843,2]
[421650839,1778024969000,-9999.99,0.00012757,2]
[421650845,1778024969000,-2926.78,0.00012843,2]
[421650852,1778025031000,-250.0,0.00012778,2]
[421650851,1778025031000,-317.0,0.00012778,2]
[421650849,1778025031000,-164.68,0.00012421,2]
[421650850,1778025031000,-1000.0,0.0001263,2]
[421650906,1778025032000,-150.0,0.000135,2]
[421650911,1778025032000,-150.0,0.0001362,2]
[421650909,1778025032000,-150.0,0.00013576,2]
[421650907,1778025032000,-150.0,0.00013532,2]
[421650899,1778025032000,-150.0,0.00013488,2]
[421650903,1778025032000,-150.0,0.00013488,2]
[421650895,1778025032000,-150.0,0.00013488,2]
[421650913,1778025032000,-265.52,0.00013631,2]
[421650891,1778025032000,-200.0,0.00013481,2]
[421650901,1778025032000,-150.0,0.00013488,2]
[421650915,1778025032000,-500.0,0.00013649,2]
[421650931,1778025032000,-518.62769852,0.00013649,2]
[421650927,1778025032000,-300.0,0.00013649,2]
[421650926,1778025032000,-170.75369872,0.00013649,2]
[421650924,1778025032000,-500.0,0.00013649,2]
[421650897,1778025032000,-150.0,0.00013488,2]
[421650932,1778025032000,-242.28009353,0.00013649,2]
[421650929,1778025032000,-500.0,0.00013649,2]
[421650933,1778025032000,-2000.0,0.0001365,2]
[421650919,1778025032000,-500.0,0.00013649,2]
[421650921,1778025032000,-500.0,0.00013649,2]
[421650922,1778025032000,-220.00638434,0.00013649,2]
[421650935,1778025032000,-372.0,0.00013657,2]
[421650936,1778025032000,-1000.0,0.00013663,2]
[421650937,1778025032000,-150.0,0.00013664,2]
[421650917,1778025032000,-500.0,0.00013649,2]
[421650893,1778025032000,-150.0,0.00013488,2]
[421650872,1778025032000,-9999.99,0.00013215,2]
[421650878,1778025032000,-9999.99,0.00013215,2]
[421650941,1778025032000,-2000.0,0.00013692,2]
[421650854,1778025032000,-378.65170133,0.00012821,2]
[421650853,1778025032000,-2445.950878,0.00012778,2]
[421650855,1778025032000,-210.31575695,0.00012843,2]
[421650856,1778025032000,-169.27678024,0.00012843,2]
[421650858,1778025032000,-166.66,0.00012862,2]
[421650857,1778025032000,-301.35,0.00012844,2]
[421650859,1778025032000,-265.52,0.00012949,2]
[421650861,1778025032000,-1200.0,0.00013067,2]
[421650860,1778025032000,-200.0,0.00012955,2]
[421650864,1778025032000,-9999.99,0.00013085,2]
[421650865,1778025032000,-157.63,0.00013203,2]
[421650889,1778025032000,-152.85,0.00013421,2]
[421650867,1778025032000,-200.0,0.00013215,2]
[421650863,1778025032000,-200.0,0.00013085,2]
[421650866,1778025032000,-24999.99,0.00013203,2]
[421650869,1778025032000,-9864.03,0.00013215,2]
[421650880,1778025032000,-361.28,0.00013215,2]
[421650881,1778025032000,-9999.99,0.00013215,2]
[421650870,1778025032000,-150.99,0.00013215,2]
[421650868,1778025032000,-9999.99,0.00013215,2]
[421650883,1778025032000,-166.66,0.00013287,2]
[421650885,1778025032000,-200.0,0.00013348,2]
[421650887,1778025032000,-3740.19,0.00013387,2]
[421650874,1778025032000,-1214.09,0.00013215,2]
[421650876,1778025032000,-999.99,0.00013215,2]
[421650862,1778025032000,-3740.19,0.00013068,2]
[421650934,1778025032000,-27753.2362,0.0001365,2]
[421650871,1778025032000,-4999.99,0.00013215,2]
[421650938,1778025032000,-168.31,0.00013664,2]
[421650967,1778025032000,-489.82499435,0.00013923,2]
[421650972,1778025032000,-500.0,0.00013948,2]
[421650969,1778025032000,-500.0,0.00013948,2]
[421650975,1778025032000,-500.0,0.00013949,2]
[421650973,1778025032000,-514.04342808,0.00013948,2]
[421650977,1778025032000,-500.0,0.00013949,2]
[421650976,1778025032000,-500.0,0.00013949,2]
[421650989,1778025032000,-500.0,0.00013949,2]
[421650988,1778025032000,-500.0,0.00013949,2]
[421650987,1778025032000,-500.0,0.00013949,2]
[421650978,1778025032000,-500.0,0.00013949,2]
[421650980,1778025032000,-500.0,0.00013949,2]
[421650982,1778025032000,-633.57617201,0.00013949,2]
[421650984,1778025032000,-500.0,0.00013949,2]
[421650981,1778025032000,-500.0,0.00013949,2]
[421650986,1778025032000,-500.0,0.00013949,2]
[421650979,1778025032000,-500.0,0.00013949,2]
[421650985,1778025032000,-500.0,0.00013949,2]
[421650991,1778025032000,-500.0,0.00013949,2]
[421650992,1778025032000,-500.0,0.00013949,2]
[421650990,1778025032000,-500.0,0.00013949,2]
[421650993,1778025032000,-500.0,0.00013949,2]
[421650994,1778025032000,-500.0,0.00013949,2]
[421650995,1778025032000,-500.0,0.00013949,2]
[421650996,1778025032000,-175.98933961,0.00013949,2]
[421650971,1778025032000,-500.0,0.00013948,2]
[421650970,1778025032000,-500.0,0.00013948,2]
[421650983,1778025032000,-500.0,0.00013949,2]
[421650968,1778025032000,-150.0,0.00013928,2]
[421650974,1778025032000,-500.0,0.00013949,2]
[421650943,1778025032000,-5222.24,0.00013699,2]
[421650939,1778025032000,-500.0,0.00013673,2]
[421650940,1778025032000,-2500.0,0.00013692,2]
[421650945,1778025032000,-166.66,0.00013699,2]
[421650944,1778025032000,-718.81,0.00013699,2]
[421650946,1778025032000,-2500.0,0.00013699,2]
[421650948,1778025032000,-788.34,0.00013699,2]
[421650947,1778025032000,-200.0,0.00013699,2]
[421650949,1778025032000,-3740.19,0.00013705,2]
[421650950,1778025032000,-150.0,0.00013708,2]
[421650951,1778025032000,-166.66,0.00013711,2]
[421650953,1778025032000,-150.0,0.00013752,2]
[421650942,1778025032000,-284.14454834,0.00013698,2]
[421650952,1778025032000,-151.0,0.00013736,2]
[421650965,1778025032000,-748.737321,0.00013893,2]
[421650954,1778025032000,-166.52,0.00013758,2]
[421650960,1778025032000,-150.0,0.00013862,2]
[421650958,1778025032000,-150.0,0.0001384,2]
[421650961,1778025032000,-150.0,0.00013884,2]
[421650964,1778025032000,-175.030602,0.00013893,2]
[421650962,1778025032000,-686.886539,0.00013893,2]
[421650959,1778025032000,-255.0,0.00013853,2]
[421650957,1778025032000,-150.0,0.00013796,2]
[421650966,1778025032000,-721.0,0.000139,5]
[421650955,1778025032000,-150.0,0.00013787,2]
[421650956,1778025032000,-150.0,0.00013787,2]
[421650963,1778025032000,-1443.865333,0.00013893,2]
[421651017,1778025033000,-423.0,0.00013949,2]
[421651027,1778025033000,-492.0,0.00013949,2]
[421651025,1778025033000,-492.0,0.00013949,2]
[421651028,1778025033000,-492.0,0.00013949,2]
[421651021,1778025033000,-492.0,0.00013949,2]
[421651020,1778025033000,-492.0,0.00013949,2]
[421651029,1778025033000,-423.0,0.00013949,2]
[421651024,1778025033000,-423.0,0.00013949,2]
[421651032,1778025033000,-150.0,0.00013949,2]
[421651023,1778025033000,-492.0,0.00013949,2]
[421651031,1778025033000,-423.0,0.00013949,2]
[421651030,1778025033000,-150.0,0.00013949,2]
[421651026,1778025033000,-423.0,0.00013949,2]
[421651034,1778025033000,-492.0,0.00013949,2]
[421651033,1778025033000,-423.0,0.00013949,2]
[421651036,1778025033000,-423.0,0.00013949,2]
[421651035,1778025033000,-150.0,0.00013949,2]
[421651022,1778025033000,-423.0,0.00013949,2]
[421651019,1778025033000,-516.99165394,0.00013949,2]
[421651007,1778025033000,-492.0,0.00013949,2]
[421651016,1778025033000,-500.0,0.00013949,2]
[421651039,1778025033000,-423.0,0.00013949,2]
[421651001,1778025033000,-500.0,0.00013949,2]
[421651002,1778025033000,-500.0,0.00013949,2]
[421651000,1778025033000,-500.0,0.00013949,2]
[421650997,1778025033000,-500.0,0.00013949,2]
[421650999,1778025033000,-500.0,0.00013949,2]
[421650998,1778025033000,-500.0,0.00013949,2]
[421651013,1778025033000,-492.0,0.00013949,2]
[421651018,1778025033000,-492.0,0.00013949,2]
[421651003,1778025033000,-500.0,0.00013949,2]
[421651006,1778025033000,-231.85832852,0.00013949,2]
[421651015,1778025033000,-492.0,0.00013949,2]
[421651009,1778025033000,-492.0,0.00013949,2]
[421651014,1778025033000,-492.0,0.00013949,2]
[421651010,1778025033000,-492.0,0.00013949,2]
[421651005,1778025033000,-500.0,0.00013949,2]
[421651011,1778025033000,-492.0,0.00013949,2]
[421651012,1778025033000,-492.0,0.00013949,2]
[421651008,1778025033000,-492.0,0.00013949,2]
[421651004,1778025033000,-500.0,0.00013949,2]
[421651037,1778025033000,-150.0,0.00013949,2]
[421651041,1778025033000,-423.0,0.00013949,2]
[421651064,1778025033000,-492.0,0.00013949,2]
[421651065,1778025033000,-500.0,0.00013949,2]
[421651067,1778025033000,-505.10474493,0.00013949,2]
[421651063,1778025033000,-500.0,0.00013949,2]
[421651066,1778025033000,-500.0,0.00013949,2]
[421651068,1778025033000,-423.0,0.00013949,2]
[421651069,1778025033000,-492.0,0.00013949,2]
[421651070,1778025033000,-423.0,0.00013949,2]
[421651062,1778025033000,-500.0,0.00013949,2]
[421651071,1778025033000,-423.0,0.00013949,2]
[421651072,1778025033000,-492.0,0.00013949,2]
[421651075,1778025033000,-423.0,0.00013949,2]
[421651076,1778025033000,-515.72360666,0.00013949,2]
[421651077,1778025033000,-441.31310544,0.00013949,2]
[421651078,1778025033000,-500.0,0.00013949,2]
[421651079,1778025033000,-500.0,0.00013949,2]
[421651080,1778025033000,-500.0,0.00013949,2]
[421651038,1778025033000,-423.0,0.00013949,2]
[421651073,1778025033000,-423.0,0.00013949,2]
[421651057,1778025033000,-500.0,0.00013949,2]
[421651074,1778025033000,-492.0,0.00013949,2]
[421651059,1778025033000,-500.0,0.00013949,2]
[421651040,1778025033000,-210.21482378,0.00013949,2]
[421651061,1778025033000,-423.0,0.00013949,2]
[421651042,1778025033000,-423.0,0.00013949,2]
[421651043,1778025033000,-492.0,0.00013949,2]
[421651044,1778025033000,-423.0,0.00013949,2]
[421651046,1778025033000,-423.0,0.00013949,2]
[421651049,1778025033000,-500.0,0.00013949,2]
[421651048,1778025033000,-423.0,0.00013949,2]
[421651047,1778025033000,-500.0,0.00013949,2]
[421651045,1778025033000,-500.0,0.00013949,2]
[421651052,1778025033000,-500.0,0.00013949,2]
[421651051,1778025033000,-500.0,0.00013949,2]
[421651053,1778025033000,-500.0,0.00013949,2]
[421651055,1778025033000,-423.0,0.00013949,2]
[421651054,1778025033000,-492.0,0.00013949,2]
[421651056,1778025033000,-500.0,0.00013949,2]
[421651060,1778025033000,-500.0,0.00013949,2]
[421651050,1778025033000,-423.0,0.00013949,2]
[421651058,1778025033000,-500.0,0.00013949,2]
[421651121,1778025034000,-150.0,0.00014237,2]
[421651113,1778025034000,-150.0,0.00014087,2]
[421651118,1778025034000,-150.0,0.00014193,2]
[421651117,1778025034000,-150.0,0.00014149,2]
[421651119,1778025034000,-1000.0,0.00014221,2]
[421651114,1778025034000,-150.0,0.00014087,2]
[421651115,1778025034000,-150.0,0.00014105,2]
[421651112,1778025034000,-150.0,0.00014061,2]
[421651120,1778025034000,-182.19555402,0.00014233,2]
[421651111,1778025034000,-424.80406011,0.00014056,2]
[421651116,1778025034000,-166.66,0.00014136,2]
[421651122,1778025034000,-150.0,0.00014237,2]
[421651127,1778025034000,-150.0,0.00014325,2]
[421651132,1778025034000,-150.0,0.00014387,2]
[421651133,1778025034000,-150.0,0.00014387,2]
[421651134,1778025034000,-1354.51,0.00014404,2]
[421651123,1778025034000,-788.34,0.00014247,2]
[421651126,1778025034000,-265.52,0.00014313,2]
[421651125,1778025034000,-1035.89,0.000143,2]
[421651128,1778025034000,-150.0,0.00014369,2]
[421651129,1778025034000,-1680.0,0.00014374,2]
[421651131,1778025034000,-166.66,0.00014384,2]
[421651130,1778025034000,-1600.0,0.00014375,2]
[421651135,1778025034000,-150.0,0.00014413,2]
[421651105,1778025034000,-250.0,0.00014056,2]
[421651124,1778025034000,-150.0,0.00014281,2]
[421651107,1778025034000,-300.0,0.00014056,2]
[421651093,1778025034000,-500.0,0.00013973,2]
[421651110,1778025034000,-300.0,0.00014056,2]
[421651087,1778025034000,-500.0,0.00013949,2]
[421651139,1778025034000,-400.0,0.000145,5]
[421651081,1778025034000,-500.0,0.00013949,2]
[421651086,1778025034000,-500.0,0.00013949,2]
[421651083,1778025034000,-500.0,0.00013949,2]
[421651085,1778025034000,-500.0,0.00013949,2]
[421651082,1778025034000,-500.0,0.00013949,2]
[421651084,1778025034000,-472.5617857,0.00013949,2]
[421651090,1778025034000,-150.0,0.00013973,2]
[421651088,1778025034000,-500.0,0.00013949,2]
[421651091,1778025034000,-160.83763861,0.00013973,2]
[421651094,1778025034000,-500.0,0.00013973,2]
[421651106,1778025034000,-600.0,0.00014056,2]
[421651092,1778025034000,-500.0,0.00013973,2]
[421651097,1778025034000,-500.0,0.00013973,2]
[421651096,1778025034000,-500.0,0.00013973,2]
[421651095,1778025034000,-500.0,0.00013973,2]
[421651098,1778025034000,-788.34,0.00013973,2]
[421651108,1778025034000,-300.0,0.00014056,2]
[421651100,1778025034000,-150.0,0.00013987,2]
[421651109,1778025034000,-300.0,0.00014056,2]
[421651099,1778025034000,-1325.09,0.00013985,2]
[421651101,1778025034000,-150.0,0.00013987,2]
[421651102,1778025034000,-250.0,0.00014,2]
[421651103,1778025034000,-150.0,0.00014017,2]
[421651104,1778025034000,-3740.19,0.00014024,2]
[421651089,1778025034000,-623.45997877,0.00013949,2]
[421651136,1778025034000,-150.0,0.00014457,2]
[421651195,1778025034000,-392.0,0.00014814,2]
[421651138,1778025034000,-150.0,0.00014487,2]
[421651170,1778025034000,-1500.0,0.00014768,2]
[421651180,1778025034000,-392.0,0.00014781,2]
[421651177,1778025034000,-392.0,0.00014775,2]
[421651175,1778025034000,-392.0,0.00014774,2]
[421651173,1778025034000,-392.0,0.00014771,2]
[421651172,1778025034000,-392.0,0.00014771,2]
[421651174,1778025034000,-500.0,0.00014773,2]
[421651178,1778025034000,-392.0,0.00014776,2]
[421651179,1778025034000,-392.0,0.00014779,2]
[421651176,1778025034000,-392.0,0.00014775,2]
[421651171,1778025034000,-392.0,0.0001477,2]
[421651181,1778025034000,-374.28226496,0.0001479,2]
[421651169,1778025034000,-150.0,0.00014766,2]
[421651192,1778025034000,-390.0,0.00014805,2]
[421651184,1778025034000,-392.0,0.0001479,2]
[421651185,1778025034000,-392.0,0.00014791,2]
[421651183,1778025034000,-4494.93770167,0.0001479,2]
[421651190,1778025034000,-392.0,0.00014801,2]
[421651188,1778025034000,-392.0,0.00014799,2]
[421651191,1778025034000,-998.0,0.00014802,5]
[421651186,1778025034000,-392.0,0.00014791,2]
[421651187,1778025034000,-392.0,0.00014797,2]
[421651193,1778025034000,-392.0,0.00014806,2]
[421651194,1778025034000,-150.0,0.0001481,2]
[421651196,1778025034000,-392.0,0.00014827,2]
[421651147,1778025034000,-166.66,0.0001456,2]
[421651189,1778025034000,-1700.0,0.000148,5]
[421651164,1778025034000,-392.0,0.00014748,2]
[421651182,1778025034000,-3258.78254597,0.0001479,2]
[421651167,1778025034000,-343.71992223,0.0001476,2]
[421651146,1778025034000,-150.0,0.00014546,2]
[421651168,1778025034000,-392.0,0.00014763,2]
[421651137,1778025034000,-150.0,0.00014487,2]
[421651141,1778025034000,-1000.0,0.00014521,2]
[421651140,1778025034000,-150.0,0.00014501,2]
[421651143,1778025034000,-1000.0,0.00014521,2]
[421651142,1778025034000,-221.1468794,0.00014521,2]
[421651144,1778025034000,-1000.0,0.00014521,2]
[421651145,1778025034000,-672.01,0.00014521,2]
[421651150,1778025034000,-150.0,0.00014612,2]
[421651152,1778025034000,-150.0,0.00014678,2]
[421651155,1778025034000,-500.0,0.00014699,2]
[421651151,1778025034000,-150.0,0.00014634,2]
[421651149,1778025034000,-800.0,0.000146,5]
[421651157,1778025034000,-9410.59295628,0.000147,2]
[421651160,1778025034000,-392.0,0.00014727,2]
[421651156,1778025034000,-500.0,0.00014699,2]
[421651166,1778025034000,-48.28007777,0.0001476,2]
[421651158,1778025034000,-1300.0,0.000147,5]
[421651161,1778025034000,-392.0,0.00014728,2]
[421651162,1778025034000,-392.0,0.00014728,2]
[421651163,1778025034000,-392.0,0.00014748,2]
[421651159,1778025034000,-150.0,0.00014722,2]
[421651154,1778025034000,-150.0,0.00014687,2]
[421651153,1778025034000,-150.0,0.00014687,2]
[421651148,1778025034000,-150.0,0.0001459,2]
[421651165,1778025034000,-392.0,0.00014751,2]
[421651245,1778025035000,-472.75,0.00014904,2]
[421651234,1778025035000,-649.19036796,0.000149,2]
[421651244,1778025035000,-392.0,0.00014904,2]
[421651235,1778025035000,-717.48988495,0.000149,2]
[421651223,1778025035000,-392.0,0.00014886,2]
[421651233,1778025035000,-176.68767689,0.000149,2]
[421651229,1778025035000,-166.52,0.00014893,2]
[421651232,1778025035000,-150.0,0.00014898,2]
[421651230,1778025035000,-392.0,0.00014894,2]
[421651246,1778025035000,-392.0,0.00014905,2]
[421651228,1778025035000,-392.0,0.00014893,2]
[421651236,1778025035000,-2200.0,0.000149,5]
[421651251,1778025035000,-331.17,0.00014909,2]
[421651239,1778025035000,-447.35406316,0.000149,2]
[421651243,1778025035000,-392.0,0.00014904,2]
[421651240,1778025035000,-2334.70160131,0.000149,2]
[421651238,1778025035000,-7473.01193325,0.000149,2]
[421651241,1778025035000,-392.0,0.00014901,2]
[421651237,1778025035000,-206.89244229,0.000149,2]
[421651248,1778025035000,-183.58,0.00014909,2]
[421651247,1778025035000,-392.0,0.00014907,2]
[421651258,1778025035000,-220.78,0.0001493,2]
[421651259,1778025035000,-392.0,0.00014939,2]
[421651250,1778025035000,-472.75,0.00014909,2]
[421651227,1778025035000,-392.0,0.00014892,2]
[421651242,1778025035000,-392.0,0.00014902,2]
[421651225,1778025035000,-150.0,0.00014889,2]
[421651201,1778025035000,-596.86,0.00014833,2]
[421651224,1778025035000,-392.0,0.00014887,2]
[421651249,1778025035000,-472.75,0.00014909,2]
[421651202,1778025035000,-500.0,0.00014833,2]
[421651197,1778025035000,-392.0,0.00014831,2]
[421651199,1778025035000,-500.0,0.00014833,2]
[421651200,1778025035000,-509.05344199,0.00014833,2]
[421651198,1778025035000,-500.0,0.00014833,2]
[421651203,1778025035000,-174.90454226,0.00014833,2]
[421651205,1778025035000,-392.0,0.00014835,2]
[421651208,1778025035000,-392.0,0.00014842,2]
[421651207,1778025035000,-392.0,0.00014838,2]
[421651204,1778025035000,-339.17929851,0.00014833,2]
[421651209,1778025035000,-392.0,0.00014845,2]
[421651226,1778025035000,-392.0,0.0001489,2]
[421651206,1778025035000,-392.0,0.00014837,2]
[421651212,1778025035000,-392.0,0.00014853,2]
[421651214,1778025035000,-392.0,0.00014854,2]
[421651213,1778025035000,-392.0,0.00014854,2]
[421651211,1778025035000,-392.0,0.00014853,2]
[421651217,1778025035000,-392.0,0.00014864,2]
[421651216,1778025035000,-392.0,0.00014862,2]
[421651218,1778025035000,-392.0,0.00014866,2]
[421651215,1778025035000,-150.0,0.00014854,2]
[421651219,1778025035000,-5000.0,0.00014873,2]
[421651221,1778025035000,-392.0,0.00014879,2]
[421651220,1778025035000,-151.0,0.00014875,2]
[421651222,1778025035000,-392.0,0.00014885,2]
[421651210,1778025035000,-392.0,0.00014852,2]
[421651252,1778025035000,-220.78,0.00014909,2]
[421651231,1778025035000,-276.25259093,0.00014898,2]
[421651253,1778025035000,-392.0,0.00014918,2]
[421651298,1778025035000,-500.0,0.00014972,2]
[421651299,1778025035000,-500.0,0.00014972,2]
[421651304,1778025035000,-392.0,0.00014975,2]
[421651306,1778025035000,-392.0,0.00014978,2]
[421651303,1778025035000,-392.0,0.00014973,2]
[421651302,1778025035000,-500.0,0.00014973,2]
[421651305,1778025035000,-392.0,0.00014976,2]
[421651295,1778025035000,-511.266808,0.00014972,2]
[421651301,1778025035000,-500.0,0.00014972,2]
[421651308,1778025035000,-392.0,0.0001498,2]
[421651316,1778025035000,-228.99736284,0.00014986,2]
[421651319,1778025035000,-392.0,0.00014988,2]
[421651297,1778025035000,-500.0,0.00014972,2]
[421651307,1778025035000,-392.0,0.0001498,2]
[421651318,1778025035000,-392.0,0.00014988,2]
[421651314,1778025035000,-150.55122366,0.00014986,2]
[421651311,1778025035000,-150.00000001,0.00014986,2]
[421651309,1778025035000,-535.18762888,0.00014983,2]
[421651310,1778025035000,-166.66,0.00014985,2]
[421651312,1778025035000,-150.0,0.00014986,2]
[421651315,1778025035000,-150.0,0.00014986,2]
[421651313,1778025035000,-3824.0,0.00014986,2]
[421651322,1778025035000,-151.0,0.00014997,2]
[421651320,1778025035000,-265.52,0.00014994,2]
[421651321,1778025035000,-392.0,0.00014995,2]
[421651255,1778025035000,-392.0,0.00014921,2]
[421651317,1778025035000,-172.25925775,0.00014986,2]
[421651296,1778025035000,-500.0,0.00014972,2]
[421651300,1778025035000,-500.0,0.00014972,2]
[421651290,1778025035000,-392.0,0.00014966,2]
[421651256,1778025035000,-392.0,0.00014928,2]
[421651254,1778025035000,-902.0,0.0001492,5]
[421651257,1778025035000,-392.0,0.00014928,2]
[421651261,1778025035000,-392.0,0.00014941,2]
[421651263,1778025035000,-150.0,0.00014942,2]
[421651262,1778025035000,-8128.0025126,0.00014942,2]
[421651280,1778025035000,-392.0,0.00014949,2]
[421651265,1778025035000,-331.17,0.00014943,2]
[421651294,1778025035000,-151.0,0.0001497,2]
[421651279,1778025035000,-392.0,0.00014949,2]
[421651272,1778025035000,-250.6,0.00014943,2]
[421651274,1778025035000,-392.0,0.00014944,2]
[421651269,1778025035000,-150.36,0.00014943,2]
[421651267,1778025035000,-150.36,0.00014943,2]
[421651278,1778025035000,-392.0,0.00014947,2]
[421651281,1778025035000,-392.0,0.00014951,2]
[421651283,1778025035000,-392.0,0.00014954,2]
[421651282,1778025035000,-331.17,0.00014951,2]
[421651293,1778025035000,-396.0,0.00014969,2]
[421651284,1778025035000,-392.0,0.00014958,2]
[421651285,1778025035000,-392.0,0.00014958,2]
[421651287,1778025035000,-392.0,0.00014961,2]
[421651289,1778025035000,-392.0,0.00014966,2]
[421651286,1778025035000,-392.0,0.0001496,2]
[421651291,1778025035000,-392.0,0.00014966,2]
[421651288,1778025035000,-392.0,0.00014963,2]
[421651292,1778025035000,-392.0,0.00014969,2]
[421651276,1778025035000,-392.0,0.00014946,2]
[421651325,1778025036000,-348.19502731,0.00014999,2]
[421651330,1778025036000,-500.0,0.00014999,2]
[421651324,1778025036000,-1000.0,0.00014999,2]
[421651329,1778025036000,-500.0,0.00014999,2]
[421651332,1778025036000,-519.13986075,0.00014999,2]
[421651323,1778025036000,-390.0,0.00014998,2]
[421651326,1778025036000,-500.0,0.00014999,2]
[421651328,1778025036000,-500.0,0.00014999,2]
[421651327,1778025036000,-500.0,0.00014999,2]
[421651334,1778025036000,-500.0,0.00014999,2]
[421651333,1778025036000,-500.0,0.00014999,2]
[421651336,1778025036000,-500.0,0.00014999,2]
[421651331,1778025036000,-500.0,0.00014999,2]
[421651338,1778025036000,-500.0,0.00014999,2]
[421651348,1778025036000,-250.0,0.00015,2]
[421651345,1778025036000,-150.0,0.00014999,2]
[421651347,1778025036000,-564.93567825,0.00015,2]
[421651346,1778025036000,-44442.16553095,0.00015,2]
[421651343,1778025036000,-509.17147862,0.00014999,2]
[421651335,1778025036000,-500.0,0.00014999,2]
[421651342,1778025036000,-334.84237238,0.00014999,2]
[421651340,1778025036000,-573.02950681,0.00014999,2]
[421651337,1778025036000,-500.0,0.00014999,2]
[421651341,1778025036000,-500.0,0.00014999,2]
[421651339,1778025036000,-500.0,0.00014999,2]
[421651344,1778025036000,-317.8558843,0.00014999,2]